fUSD/lending_fUSD_20250123
["ID","MTS","AMOUNT","RATE_DAILY","PERIOD"]
[350086919,1737611450039,-1105.7,0.00019452,2]
[350086920,1737611450048,-500.0,0.00019452,2]
[350086921,1737611450058,-500.0,0.00019452,2]
[350086922,1737611450067,-500.0,0.00019452,2]
[350086923,1737611450076,-500.0,0.00019452,2]
[350086924,1737611450086,-2112.6,0.00019452,2]
[350086925,1737611450095,-500.0,0.00019452,2]
[350086926,1737611450105,-1757.87,0.00019452,2]
[350086927,1737611450114,-500.0,0.00019452,2]
[350086928,1737611450124,-500.0,0.00019452,2]
[350086929,1737611450133,-500.0,0.00019452,2]
[350086930,1737611450143,-500.0,0.00019452,2]
[350086931,1737611450153,-3281.81,0.00019452,2]
[350086932,1737611450163,-1048.55,0.00019452,2]
[350086933,1737611450172,-500.0,0.00019452,2]
[350086934,1737611450181,-985.82,0.00019452,2]
[350086935,1737611450191,-886.58,0.00019452,2]
[350086936,1737611450200,-500.0,0.00019452,2]
[350086937,1737611450209,-500.0,0.00019452,2]
[350086938,1737611450219,-500.0,0.00019452,2]
[350086939,1737611450233,-255.40596412,0.00019452,2]
[350086940,1737611450243,-500.0,0.00019452,2]
[350086941,1737611450253,-500.0,0.00019452,2]
[350086942,1737611450262,-500.0,0.00019452,2]
[350086943,1737611450271,-243.3892939,0.00019452,2]
[350086944,1737611450281,-500.0,0.00019452,2]
[350086945,1737611450290,-1302.95,0.00019452,2]
[350086946,1737611450299,-500.0,0.00019452,2]
[350086947,1737611450309,-500.0,0.00019452,2]
[350086948,1737611450318,-500.0,0.00019452,2]
[350086949,1737611450327,-577.7,0.00019452,2]
[350086950,1737611450337,-906.73,0.00019452,2]
[350086951,1737611450346,-500.0,0.00019452,2]
[350086952,1737611450355,-500.0,0.00019452,2]
[350086953,1737611450364,-500.0,0.00019452,2]
[350086954,1737611450375,-500.0,0.00019452,2]
[350086955,1737611450384,-500.0,0.00019452,2]
[350086956,1737611450393,-500.0,0.00019452,2]
[350086957,1737611450403,-500.0,0.00019452,2]
[350086958,1737611450412,-500.0,0.00019452,2]
[350086959,1737611450421,-500.0,0.00019452,2]
[350086960,1737611450431,-153.05144109,0.00019473,2]
[350086961,1737611450440,-500.72027652,0.00019473,2]
[350086962,1737611450450,-151.04794826,0.00019473,2]
[350086963,1737611450459,-501.39060582,0.00019473,2]
[350086964,1737611450471,-166.82370333,0.00019473,2]
[350086965,1737611450483,-472.42286476,0.00019473,2]
[350086966,1737611450493,-152.30305061,0.00019473,2]
[350086967,1737611450502,-169.95205696,0.00019473,2]
[350086968,1737611450511,-161.07959352,0.00019473,2]
[350086969,1737611450521,-150.487,0.00019521,2]
[350086970,1737611450530,-1176.0,0.00019521,2]
[350086971,1737611450539,-150.0,0.00019521,2]
[350086972,1737611450548,-3903.0,0.00019521,2]
[350086973,1737611450557,-1106.0,0.00019521,2]
[350086974,1737611450566,-981.79,0.00019534,2]
[350086975,1737611450575,-150.0,0.00019534,2]
[350086976,1737611450584,-150.0,0.00019534,2]
[350086977,1737611450596,-150.0,0.00019534,2]
[350086978,1737611450605,-745.0,0.000196,2]
[350086979,1737611450615,-500.0,0.00019623,2]
[350086980,1737611450624,-500.0,0.00019623,2]
[350086981,1737611450633,-635.49,0.00019623,2]
[350086982,1737611450645,-500.0,0.00019623,2]
[350086983,1737611450654,-992.45,0.00019624,2]
[350086984,1737611450663,-500.0,0.00019624,2]
[350086985,1737611450675,-1922.27,0.00019624,2]
[350086986,1737611450686,-736.38,0.00019624,2]
[350086987,1737611450696,-598.74,0.00019624,2]
[350086988,1737611450706,-1530.88,0.00019624,2]
[350086989,1737611450715,-1226.94,0.00019624,2]
[350086990,1737611450725,-1453.16,0.00019624,2]
[350086991,1737611450735,-500.0,0.00019624,2]
[350086992,1737611450744,-1139.9,0.00019624,2]
[350086993,1737611450753,-500.0,0.00019624,2]
[350086994,1737611450762,-794.06,0.00019624,2]
[350086995,1737611450772,-500.0,0.00019624,2]
[350086996,1737611450781,-921.2,0.00019624,2]
[350086997,1737611450791,-2179.73,0.00019624,2]
[350086998,1737611450802,-2080.14,0.00019624,2]
[350086999,1737611450811,-1094.55,0.00019624,2]
[350087000,1737611450820,-898.14,0.00019624,2]
[350087001,1737611450829,-500.0,0.00019624,2]
[350087002,1737611450839,-500.0,0.00019624,2]
[350087003,1737611450848,-2682.36,0.00019624,2]
[350087004,1737611450857,-751.43,0.00019624,2]
[350087005,1737611450866,-500.0,0.00019624,2]
[350087006,1737611450876,-500.0,0.00019624,2]
[350087007,1737611450885,-500.0,0.00019624,2]
[350087008,1737611450894,-500.0,0.00019624,2]
[350087009,1737611450903,-1027.46,0.00019624,2]
[350087010,1737611450912,-500.0,0.00019624,2]
[350087011,1737611450922,-500.0,0.00019624,2]
[350087012,1737611450931,-500.0,0.00019624,2]
[350087013,1737611450941,-2511.24,0.00019624,2]
[350087014,1737611450950,-622.38,0.00019624,2]
[350087015,1737611450960,-500.0,0.00019624,2]
[350087016,1737611450970,-191.61658947,0.00019626,2]
[350087017,1737611450983,-151.18492202,0.00019634,2]
[350087018,1737611450992,-500.0,0.00019634,2]
[350087019,1737611451001,-3185.60830584,0.00019642,2]
[350087020,1737611451011,-2266.70176659,0.00019642,2]
[350087021,1737611451020,-150.0,0.000197,2]
[350087022,1737611451029,-600.0,0.000197,7]
[350087023,1737611451037,-572.60596787,0.00019724,2]
[350087024,1737611451047,-500.0,0.00019724,2]
[350087025,1737611451056,-500.0,0.00019724,2]
[350087026,1737611451065,-652.91,0.00019724,2]
[350087027,1737611451074,-500.0,0.00019724,2]
[350087028,1737611451084,-1103.54,0.00019724,2]
[350087029,1737611451093,-500.0,0.00019724,2]
[350087030,1737611451103,-500.0,0.00019724,2]
[350087031,1737611451112,-500.0,0.00019724,2]
[350087032,1737611451121,-500.0,0.00019724,2]
[350087033,1737611451131,-500.0,0.00019724,2]
[350087034,1737611451141,-439.07489168,0.00019724,2]
[350087035,1737611451151,-523.75,0.00019724,2]
[350087036,1737611451163,-814.46,0.00019724,2]
[350087037,1737611451173,-500.0,0.00019724,2]
[350087038,1737611451182,-521.67,0.00019724,2]
[350087039,1737611451191,-500.0,0.00019724,2]
[350087040,1737611451200,-518.4578454,0.00019724,2]
[350087041,1737611451211,-500.0,0.00019724,2]
[350087042,1737611451221,-500.0,0.00019724,2]
[350087043,1737611451234,-550.36,0.00019724,2]
[350087044,1737611451243,-500.0,0.00019724,2]
[350087045,1737611451252,-500.0,0.00019724,2]
[350087046,1737611451261,-661.84,0.00019724,2]
[350087047,1737611451271,-500.0,0.00019724,2]
[350087048,1737611451281,-500.0,0.00019724,2]
[350087049,1737611451291,-500.0,0.00019724,2]
[350087050,1737611451301,-500.0,0.00019724,2]
[350087051,1737611451310,-500.0,0.00019724,2]
[350087052,1737611451319,-756.71,0.00019724,2]
[350087053,1737611451330,-500.0,0.00019724,2]
[350087054,1737611451340,-500.0,0.00019724,2]
[350087055,1737611451474,-500.0,0.00019724,2]
[350087056,1737611451486,-820.51,0.00019724,2]
[350087057,1737611451496,-500.0,0.00019724,2]
[350087058,1737611451507,-500.0,0.00019724,2]
[350087059,1737611451517,-500.0,0.00019724,2]
[350087060,1737611451528,-500.0,0.00019724,2]
[350087061,1737611451537,-500.0,0.00019724,2]
[350087062,1737611451547,-500.0,0.00019724,2]
[350087063,1737611451557,-870.52,0.00019724,2]
[350087064,1737611451566,-500.0,0.00019724,2]
[350087065,1737611451575,-500.0,0.00019724,2]
[350087066,1737611451585,-500.0,0.00019724,2]
[350087067,1737611451597,-500.0,0.00019724,2]
[350087068,1737611451607,-846.98,0.00019724,2]
[350087069,1737611451617,-560.38,0.00019724,2]
[350087070,1737611451627,-804.46,0.00019724,2]
[350087071,1737611451636,-500.0,0.00019724,2]
[350087072,1737611451647,-500.0,0.00019724,2]
[350087073,1737611451655,-500.0,0.00019724,2]
[350087074,1737611451682,-596.15,0.00019724,2]
[350087075,1737611451692,-500.0,0.00019724,2]
[350087076,1737611451702,-730.62,0.00019724,2]
[350087077,1737611451713,-722.81,0.00019724,2]
[350087078,1737611451723,-500.0,0.00019724,2]
[350087079,1737611451735,-500.0,0.00019724,2]
[350087080,1737611451744,-507.98639456,0.00019724,2]
[350087081,1737611451754,-926.24,0.00019724,2]
[350087082,1737611451764,-872.58,0.00019724,2]
[350087083,1737611451775,-756.42,0.00019724,2]
[350087084,1737611451785,-571.58,0.00019724,2]
[350087085,1737611451795,-441.794103,0.00019724,2]
[350087086,1737611451804,-907.07,0.00019724,2]
[350087087,1737611451814,-500.0,0.00019724,2]
[350087088,1737611451824,-500.0,0.00019724,2]
[350087089,1737611451834,-740.54,0.00019724,2]
[350087090,1737611451843,-500.0,0.00019724,2]
[350087091,1737611451852,-642.453793,0.00019724,2]
[350087092,1737611451862,-500.0,0.00019724,2]
[350087093,1737611451871,-500.0,0.00019724,2]
[350087094,1737611451881,-959.94,0.00019724,2]
[350087095,1737611451890,-500.0,0.00019724,2]
[350087096,1737611451900,-770.37,0.00019724,2]
[350087097,1737611451910,-500.0,0.00019724,2]
[350087098,1737611451919,-961.12,0.00019724,2]
[350087099,1737611451929,-928.68,0.00019724,2]
[350087100,1737611451938,-500.0,0.00019724,2]
[350087101,1737611451948,-3389.92,0.00019724,2]
[350087102,1737611451957,-500.0,0.00019724,2]
[350087103,1737611451967,-1163.05,0.00019724,2]
[350087104,1737611451978,-3328.2,0.00019724,2]
[350087105,1737611451987,-500.0,0.00019724,2]
[350087106,1737611451997,-647.35,0.00019724,2]
[350087107,1737611452006,-597.37,0.00019724,2]
[350087108,1737611452016,-1351.46,0.00019724,2]
[350087109,1737611452025,-500.0,0.00019724,2]
[350087110,1737611452034,-1916.09,0.00019724,2]
[350087111,1737611452044,-500.0,0.00019724,2]
[350087112,1737611452053,-1853.67,0.00019724,2]
[350087113,1737611452063,-500.0,0.00019724,2]
[350087114,1737611452073,-500.0,0.00019724,2]
[350087115,1737611452082,-500.0,0.00019724,2]
[350087116,1737611452091,-1180.89,0.00019724,2]
[350087117,1737611452100,-604.47,0.00019724,2]
[350087118,1737611452110,-1225.17,0.00019724,2]
[350087119,1737611452119,-500.0,0.00019724,2]
[350087120,1737611452129,-2192.28,0.00019724,2]
[350087121,1737611452139,-1087.59,0.00019724,2]
[350087122,1737611452148,-500.0,0.00019724,2]
[350087123,1737611452157,-500.0,0.00019724,2]
[350087124,1737611452167,-500.0,0.00019724,2]
[350087125,1737611452176,-515.66106063,0.00019724,2]
[350087126,1737611452185,-2557.78,0.00019724,2]
[350087127,1737611452195,-500.0,0.00019724,2]
[350087128,1737611452205,-500.0,0.00019724,2]
[350087129,1737611452214,-500.0,0.00019724,2]
[350087130,1737611452223,-687.86,0.00019724,2]
[350087131,1737611452235,-500.0,0.00019724,2]
[350087132,1737611452244,-526.68,0.00019724,2]
[350087133,1737611452254,-502.15365608,0.00019724,2]
[350087134,1737611452263,-1114.72,0.00019724,2]
[350087135,1737611452272,-500.0,0.00019724,2]
[350087136,1737611452282,-1015.0,0.00019724,2]
[350087137,1737611452291,-500.0,0.00019724,2]
[350087138,1737611452300,-500.0,0.00019724,2]
[350087139,1737611452309,-500.0,0.00019724,2]
[350087140,1737611452319,-2635.11,0.00019724,2]
[350087141,1737611452328,-500.0,0.00019724,2]
[350087142,1737611452337,-500.0,0.00019724,2]
[350087143,1737611452347,-1230.27,0.00019724,2]
[350087144,1737611452355,-500.0,0.00019724,2]
[350087145,1737611452364,-582.1,0.00019724,2]
[350087146,1737611452373,-500.0,0.00019724,2]
[350087147,1737611452382,-500.0,0.00019724,2]
[350087148,1737611452391,-1842.56,0.00019724,2]
[350087149,1737611452400,-500.0,0.00019724,2]
[350087150,1737611452409,-500.0,0.00019724,2]
[350087151,1737611452418,-862.13,0.00019724,2]
[350087152,1737611452427,-500.0,0.00019724,2]
[350087153,1737611452436,-500.0,0.00019724,2]
[350087154,1737611452445,-687.14,0.00019724,2]
[350087155,1737611452454,-500.0,0.00019724,2]
[350087156,1737611452463,-500.0,0.00019724,2]
[350087157,1737611452471,-500.0,0.00019724,2]
[350087158,1737611452483,-500.0,0.00019724,2]
[350087159,1737611452492,-500.0,0.00019724,2]
[350087160,1737611452501,-1223.08,0.00019724,2]
[350087161,1737611452510,-653.44,0.00019724,2]
[350087162,1737611452519,-500.0,0.00019724,2]
[350087163,1737611452528,-568.47,0.00019724,2]
[350087164,1737611452537,-500.0,0.00019724,2]
[350087165,1737611452547,-803.35,0.00019724,2]
[350087166,1737611452556,-519.41,0.00019724,2]
[350087167,1737611452566,-1382.01,0.00019724,2]
[350087168,1737611452575,-500.0,0.00019724,2]
[350087169,1737611452584,-1006.43,0.00019724,2]
[350087170,1737611452596,-500.0,0.00019724,2]
[350087171,1737611452605,-500.0,0.00019724,2]
[350087172,1737611452615,-1438.72,0.00019724,2]
[350087173,1737611452625,-1915.2,0.00019724,2]
[350087174,1737611452634,-500.0,0.00019724,2]
[350087175,1737611452643,-500.0,0.00019724,2]
[350087176,1737611452652,-798.39,0.00019724,2]
[350087177,1737611452661,-2677.87,0.00019724,2]
[350087178,1737611452673,-2057.62,0.00019724,2]
[350087179,1737611452683,-5446.26,0.00019725,2]
[350087180,1737611452695,-1056.81,0.00019725,2]
[350087181,1737611452711,-881.08,0.00019725,2]
[350087182,1737611452725,-2041.21,0.00019725,2]
[350087183,1737611452737,-500.0,0.00019725,2]
[350087184,1737611452751,-941.55,0.00019725,2]
[350087185,1737611452765,-1306.29,0.00019725,2]
[350087186,1737611452779,-1355.17,0.00019725,2]
[350087187,1737611452794,-500.0,0.00019725,2]
[350087188,1737611452806,-1000.0,0.00019725,2]
[350087189,1737611452818,-1220.7,0.00019725,2]
[350087190,1737611452829,-500.0,0.00019725,2]
[350087191,1737611452844,-1562.02,0.00019725,2]
[350087192,1737611452857,-2055.78,0.00019725,2]
[350087193,1737611452871,-500.0,0.00019726,2]
[350087194,1737611452884,-500.0,0.00019726,2]
[350087195,1737611452897,-500.0,0.00019726,2]
[350087196,1737611452910,-622.35,0.00019726,2]
[350087197,1737611452923,-359.94355148,0.00019726,2]
[350087198,1737611452937,-500.0,0.00019726,2]
[350087199,1737611452949,-500.0,0.00019726,2]
[350087200,1737611452962,-269.34311849,0.00019726,2]
[350087201,1737611452974,-500.0,0.00019726,2]
[350087202,1737611452992,-500.0,0.00019726,2]
[350087203,1737611453004,-500.0,0.00019726,2]
[350087204,1737611453016,-500.0,0.00019726,2]
[350087205,1737611453026,-500.0,0.00019726,2]
[350087206,1737611453039,-500.0,0.00019726,2]
[350087207,1737611453055,-520.10699177,0.00019726,2]
[350087208,1737611453067,-500.0,0.00019726,2]
[350087209,1737611453080,-184.99255273,0.00019726,2]
[350087210,1737611453092,-334.17143277,0.00019726,2]
[350087211,1737611453108,-509.77690724,0.00019726,2]
[350087212,1737611453123,-500.0,0.00019726,2]
[350087213,1737611453135,-500.0,0.00019726,2]
[350087214,1737611453147,-500.0,0.00019726,2]
[350087215,1737611453159,-500.0,0.00019726,2]
[350087216,1737611453171,-500.0,0.00019726,2]
[350087217,1737611453182,-500.0,0.00019726,2]
[350087218,1737611453194,-500.0,0.00019726,2]
[350087219,1737611453206,-500.0,0.00019726,2]
[350087220,1737611453217,-500.0,0.00019726,2]
[350087221,1737611453231,-500.0,0.00019726,2]
[350087222,1737611453243,-500.0,0.00019726,2]
[350087223,1737611453255,-535.35824389,0.00019726,2]
[350087224,1737611453266,-500.0,0.00019726,2]
[350087225,1737611453277,-500.0,0.00019726,2]
[350087226,1737611453291,-500.0,0.00019726,2]
[350087227,1737611453303,-500.0,0.00019726,2]
[350087228,1737611453314,-500.0,0.00019726,2]
[350087229,1737611453326,-500.0,0.00019726,2]
[350087230,1737611453339,-500.0,0.00019726,2]
[350087231,1737611453351,-500.0,0.00019726,2]
[350087232,1737611453363,-500.0,0.00019726,2]
[350087233,1737611453375,-513.53,0.00019726,2]
[350087234,1737611453386,-500.0,0.00019726,2]
[350087235,1737611453398,-500.0,0.00019726,2]
[350087236,1737611453413,-500.0,0.00019726,2]
[350087237,1737611453425,-500.0,0.00019726,2]
[350087238,1737611453437,-525.91689088,0.00019726,2]
[350087239,1737611453450,-500.0,0.00019726,2]
[350087240,1737611453461,-500.0,0.00019726,2]
[350087241,1737611453473,-500.0,0.00019726,2]
[350087242,1737611453488,-500.0,0.00019726,2]
[350087243,1737611453500,-500.0,0.00019726,2]
[350087244,1737611453512,-500.0,0.00019726,2]
[350087245,1737611453527,-500.0,0.00019726,2]
[350087246,1737611453537,-500.0,0.00019726,2]
[350087247,1737611453549,-532.0,0.00019726,2]
[350087248,1737611453561,-500.0,0.00019726,2]
[350087249,1737611453573,-500.0,0.00019726,2]
[350087250,1737611453585,-854.04,0.00019726,2]
[350087251,1737611453600,-500.0,0.00019726,2]
[350087252,1737611453613,-500.0,0.00019726,2]
[350087253,1737611453624,-500.0,0.00019726,2]
[350087254,1737611453636,-500.0,0.00019726,2]
[350087255,1737611453648,-500.0,0.00019726,2]
[350087256,1737611453660,-500.0,0.00019726,2]
[350087257,1737611453676,-500.0,0.00019726,2]
[350087258,1737611453688,-500.0,0.00019726,2]
[350087259,1737611453700,-500.0,0.00019726,2]
[350087260,1737611453712,-500.0,0.00019726,2]
[350087261,1737611453724,-500.0,0.00019726,2]
[350087262,1737611453737,-500.0,0.00019726,2]
[350087263,1737611453749,-318.180489,0.00019726,2]
[350087264,1737611453762,-751.33,0.00019726,2]
[350087265,1737611453775,-500.0,0.00019726,2]
[350087266,1737611453789,-500.0,0.00019726,2]
[350087267,1737611453799,-500.0,0.00019726,2]
[350087268,1737611453811,-645.53,0.00019726,2]
[350087269,1737611453823,-716.43,0.00019726,2]
[350087270,1737611453835,-500.0,0.00019726,2]
[350087271,1737611453848,-500.0,0.00019726,2]
[350087272,1737611453860,-500.0,0.00019726,2]
[350087273,1737611453872,-500.0,0.00019726,2]
[350087274,1737611453884,-500.0,0.00019726,2]
[350087275,1737611453895,-500.0,0.00019726,2]
[350087276,1737611453907,-500.0,0.00019726,2]
[350087277,1737611453919,-500.0,0.00019726,2]
[350087278,1737611453930,-500.0,0.00019726,2]
[350087279,1737611453943,-500.0,0.00019726,2]
[350087280,1737611453954,-500.0,0.00019726,2]
[350087281,1737611453966,-500.0,0.00019726,2]
[350087282,1737611453980,-500.0,0.00019726,2]
[350087283,1737611453992,-500.0,0.00019726,2]
[350087284,1737611454004,-500.0,0.00019726,2]
[350087285,1737611454017,-500.0,0.00019726,2]
[350087286,1737611454029,-363.80170399,0.00019726,2]
[350087287,1737611454041,-500.0,0.00019726,2]
[350087288,1737611454052,-500.0,0.00019726,2]
[350087289,1737611454061,-500.0,0.00019726,2]
[350087290,1737611454070,-500.0,0.00019726,2]
[350087291,1737611454080,-500.0,0.00019726,2]
[350087292,1737611454089,-500.0,0.00019726,2]
[350087293,1737611454098,-528.70592296,0.00019726,2]
[350087294,1737611454107,-500.0,0.00019726,2]
[350087295,1737611454116,-500.0,0.00019726,2]
[350087296,1737611454125,-228.51615388,0.00019726,2]
[350087297,1737611454135,-537.48,0.00019726,2]
[350087298,1737611454143,-500.0,0.00019726,2]
[350087299,1737611454152,-500.0,0.00019726,2]
[350087300,1737611454162,-500.0,0.00019726,2]
[350087301,1737611454171,-500.0,0.00019726,2]
[350087302,1737611454181,-500.0,0.00019726,2]
[350087303,1737611454411,-500.0,0.00019726,2]
[350087304,1737611454429,-500.0,0.00019726,2]
[350087305,1737611454443,-500.0,0.00019726,2]
[350087306,1737611454453,-500.0,0.00019726,2]
[350087307,1737611454462,-500.0,0.00019726,2]
[350087308,1737611454471,-554.79525899,0.00019726,2]
[350087309,1737611454483,-500.0,0.00019726,2]
[350087310,1737611454492,-500.0,0.00019726,2]
[350087311,1737611454502,-500.0,0.00019726,2]
[350087312,1737611454511,-500.0,0.00019726,2]
[350087313,1737611454521,-500.0,0.00019726,2]
[350087314,1737611454530,-500.0,0.00019726,2]
[350087315,1737611454540,-500.0,0.00019726,2]
[350087316,1737611454549,-1962.38,0.00019726,2]
[350087317,1737611454558,-500.0,0.00019726,2]
[350087318,1737611454568,-1116.01,0.00019726,2]
[350087319,1737611454578,-500.0,0.00019726,2]
[350087320,1737611454587,-500.0,0.00019726,2]
[350087321,1737611454600,-1678.25,0.00019726,2]
[350087322,1737611454610,-327.62909631,0.00019726,2]
[350087323,1737611454620,-500.0,0.00019726,2]
[350087324,1737611454631,-500.0,0.00019726,2]
[350087325,1737611454640,-500.0,0.00019726,2]
[350087326,1737611454649,-500.0,0.00019726,2]
[350087327,1737611454658,-513.90115436,0.00019726,2]
[350087328,1737611454667,-500.0,0.00019726,2]
[350087329,1737611454677,-500.0,0.00019726,2]
[350087330,1737611454687,-1105.7,0.00019726,2]
[350087331,1737611454696,-500.0,0.00019726,2]
[350087332,1737611454705,-500.0,0.00019726,2]
[350087333,1737611454714,-500.0,0.00019726,2]
[350087334,1737611454723,-500.0,0.00019726,2]
[350087335,1737611454735,-2112.6,0.00019726,2]
[350087336,1737611454744,-500.0,0.00019726,2]
[350087337,1737611454753,-1757.87,0.00019726,2]
[350087338,1737611454763,-500.0,0.00019726,2]
[350087339,1737611454772,-500.0,0.00019726,2]
[350087340,1737611454782,-592.43168497,0.00019726,2]
[350087341,1737611454792,-500.0,0.00019726,2]
[350087342,1737611454802,-3281.81,0.00019726,2]
[350087343,1737611454811,-1048.55,0.00019726,2]
[350087344,1737611454821,-500.0,0.00019726,2]
[350087345,1737611454831,-985.82,0.00019726,2]
[350087346,1737611454840,-886.58,0.00019726,2]
[350087347,1737611454850,-500.0,0.00019726,2]
[350087348,1737611454859,-500.0,0.00019726,2]
[350087349,1737611454868,-515.49071922,0.00019726,2]
[350087350,1737611454878,-500.0,0.00019726,2]
[350087351,1737611454887,-500.0,0.00019726,2]
[350087352,1737611454896,-500.0,0.00019726,2]
[350087353,1737611454906,-500.0,0.00019726,2]
[350087354,1737611454915,-1302.95,0.00019726,2]
[350087355,1737611454925,-570.64720533,0.00019726,2]
[350087356,1737611454935,-489.28842908,0.00019726,2]
[350087357,1737611454944,-500.0,0.00019726,2]
[350087358,1737611454953,-577.7,0.00019726,2]
[350087359,1737611454962,-906.73,0.00019726,2]
[350087360,1737611454972,-500.0,0.00019726,2]
[350087361,1737611454984,-500.0,0.00019726,2]
[350087362,1737611454994,-352.06346201,0.00019726,2]
[350087363,1737611455002,-500.0,0.00019726,2]
[350087364,1737611455011,-500.0,0.00019726,2]
[350087365,1737611455020,-500.0,0.00019726,2]
[350087366,1737611455030,-500.0,0.00019726,2]
[350087367,1737611455040,-500.0,0.00019726,2]
[350087368,1737611455049,-150.0,0.0001974,2]
[350087369,1737611455058,-150.0,0.00019742,2]
[350087370,1737611455067,-150.0,0.00019757,2]
[350087371,1737611455077,-150.0,0.00019774,2]
[350087372,1737611455086,-150.0,0.0001978,2]
[350087373,1737611455095,-1300.0,0.000198,7]
[350087374,1737611455104,-2962.53913,0.000198,2]
[350087375,1737611455113,-150.0,0.00019804,2]
[350087376,1737611455123,-150.0,0.00019804,2]
[350087377,1737611455132,-150.0,0.00019804,2]
[350087378,1737611455141,-150.0,0.00019805,2]
[350087379,1737611455151,-150.0,0.00019848,2]
[350087380,1737611455160,-167.14,0.00019866,2]
[350087381,1737611455169,-150.0,0.00019873,2]
[350087382,1737611455178,-150.0,0.00019875,2]
[350087383,1737611455187,-27311.4196,0.00019885,2]
[350087384,1737611455196,-515.0441,0.00019885,2]
[350087385,1737611455206,-150.0,0.00019889,2]
[350087386,1737611455215,-150.0,0.00019895,2]
[350087387,1737611455224,-500.0,0.00019897,2]
[350087388,1737611455236,-255.36221661,0.00019897,2]
[350087389,1737611455246,-635.49,0.00019897,2]
[350087390,1737611455255,-500.0,0.00019897,2]
[350087391,1737611455264,-472.49299772,0.00019898,2]
[350087392,1737611455274,-1026.28434479,0.00019898,2]
[350087393,1737611455282,-992.45,0.00019898,2]
[350087394,1737611455293,-500.0,0.00019898,2]
[350087395,1737611455302,-1922.27,0.00019898,2]
[350087396,1737611455312,-736.38,0.00019898,2]
[350087397,1737611455322,-598.74,0.00019898,2]
[350087398,1737611455331,-1530.88,0.00019898,2]
[350087399,1737611455341,-1226.94,0.00019898,2]
[350087400,1737611455351,-1453.16,0.00019898,2]
[350087401,1737611455362,-500.0,0.00019898,2]
[350087402,1737611455371,-1139.9,0.00019898,2]
[350087403,1737611455381,-500.0,0.00019898,2]
[350087404,1737611455390,-794.06,0.00019898,2]
[350087405,1737611455399,-500.0,0.00019898,2]
[350087406,1737611455409,-921.2,0.00019898,2]
[350087407,1737611455418,-2179.73,0.00019898,2]
[350087408,1737611455428,-2080.14,0.00019898,2]
[350087409,1737611455438,-1094.55,0.00019898,2]
[350087410,1737611455447,-898.14,0.00019898,2]
[350087411,1737611455456,-500.0,0.00019898,2]
[350087412,1737611455465,-500.0,0.00019898,2]
[350087413,1737611455474,-2682.36,0.00019898,2]
[350087414,1737611455488,-751.43,0.00019898,2]
[350087415,1737611455497,-500.0,0.00019898,2]
[350087416,1737611455507,-500.0,0.00019898,2]
[350087417,1737611455516,-500.0,0.00019898,2]
[350087418,1737611455525,-500.0,0.00019898,2]